bitfinex-derivatives/quotes_ETHF0:USTF0_20251216
["timestamp","ask_amount","ask_price","bid_price","bid_amount"]
[1765908421552,17.4948,2925.0,2924.5,5.2516]
[1765908421744,40.8,2924.9,2924.5,5.2516]
[1765908421939,2.0706,2924.6,2924.5,5.2516]
[1765908422149,2.0706,2924.6,2924.5,0.00414767]
[1765908422150,4.0974,2924.6,2924.5,0.00414767]
[1765908422350,4.2684,2924.6,2924.5,0.00414767]
[1765908422544,2.0706,2923.7,2923.3,3.2078]
[1765908422947,42.8706,2923.7,2923.3,3.2078]
[1765908423450,42.87312816,2923.7,2923.3,3.21185136]
[1765908423754,2.07312816,2923.7,2923.3,3.21185136]
[1765908425650,0.00252816,2923.7,2923.6,4.0215]
[1765908425846,0.00252816,2923.7,2923.6,9.33227525]
[1765908426041,3.2078,2924.7,2924.4,1.8458]
[1765908426448,3.2078,2924.7,2924.1,3.2078]
[1765908426946,3.21538283,2924.7,2924.1,3.2078]
[1765908427646,1.8475,2924.2,2924.1,3.2078]
[1765908427847,3.7731,2924.2,2924.1,3.2078]
[1765908428051,3.7731,2924.2,2923.3,0.00405136]
[1765908428052,3.7731,2923.9,2923.8,3.2078]
[1765908428643,16.208,2924.2,2923.8,5.0536]
[1765908429047,0.17101,2924.3,2923.8,5.0536]
[1765908429246,3.21538283,2924.7,2924.3,3.8235]
[1765908429849,0.00758283,2924.7,2924.3,3.8235]
[1765908430051,0.00758283,2924.7,2924.6,3.8235]
[1765908433547,3.2078,2925.9,2925.3,3.8235]
[1765908433750,4.50961,2926.2,2925.5,3.2078]
[1765908433951,40.8,2926.1,2925.5,3.2078]
[1765908434153,4.904,2925.6,2925.5,3.2078]
[1765908434557,8.11609287,2925.6,2925.5,0.0025344]
[1765908434855,3.7731,2924.9,2924.8,3.2078]
[1765908435047,0.17095,2925.4,2924.9,1.8458]
[1765908435248,1.13519287,2925.6,2924.9,1.8458]
[1765908435648,1.13519287,2925.6,2925.1,3.2078]
[1765908435854,1.13519287,2925.6,2925.1,3.21674836]
[1765908436957,0.00429287,2925.6,2925.5,1.8458]
[1765908437656,0.00429287,2925.6,2925.5,3.8235]
[1765908438454,0.00429287,2925.6,2925.5,1.8458]
[1765908439160,0.00429287,2925.6,2925.5,3.8235]
[1765908440662,1.7135,2926.1,2926.0,3.8235]
[1765908440863,1.30173,2927.4,2926.7,3.8235]
[1765908441061,4.50953,2927.4,2926.7,3.8235]
[1765908441265,4.50953,2927.4,2926.7,7.0313]
[1765908441465,16.204,2927.3,2926.7,7.0313]
[1765908441663,3.7731,2926.8,2926.3,3.2078]
[1765908441863,1.8475,2926.4,2926.3,3.21293233]
[1765908442063,1.1309,2926.5,2926.3,5.05873233]
[1765908442259,0.00513233,2926.8,2926.4,1.8458]
[1765908442965,0.00513233,2926.8,2926.6,3.2078]
[1765908444168,3.7731,2926.7,2926.3,0.00513233]
[1765908444368,3.7731,2926.4,2926.3,0.00513233]
[1765908444981,0.00513233,2926.8,2926.3,0.00513233]
[1765908444982,0.00513233,2926.8,2926.7,3.8235]
[1765908445161,2.43696138,2927.1,2927.0,3.8235]
[1765908445467,0.02467185,2927.1,2927.0,7.8236]
[1765908446267,0.02467185,2927.1,2927.0,7.0313]
[1765908448568,0.02467185,2927.1,2927.0,11.56169651]
[1765908448878,0.02467185,2927.1,2927.0,7.0313]
[1765908450366,0.02467185,2927.1,2927.0,8.1581]
[1765908450570,0.00950068,2927.3,2927.2,3.8235]
[1765908450762,0.00950068,2927.3,2927.2,3.82662802]
[1765908451976,3.78260068,2927.3,2927.2,0.00312802]
[1765908452862,0.00950068,2927.3,2927.2,1.84892802]
[1765908453069,0.00950068,2927.3,2927.2,3.82662802]
[1765908454873,3.77680068,2927.3,2927.2,0.00312802]
[1765908455070,0.00950068,2927.3,2927.2,3.99042802]
[1765908457668,6.8e-07,2927.3,2927.2,3.99042802]
[1765908457873,6.8e-07,2927.3,2927.2,9.99042802]
[1765908458179,6.8e-07,2927.3,2927.2,3.99042802]
[1765908458472,6.8e-07,2927.3,2927.2,9.99042802]
[1765908458668,0.00402984,2927.3,2927.2,3.99042802]
[1765908458871,3.052e-05,2927.3,2927.2,4.16126802]
[1765908459973,3.052e-05,2927.3,2927.2,14.6399026]
[1765908462890,1.1733,2927.9,2927.8,3.9873]
[1765908463174,3.2078,2929.4,2928.9,3.9873]
[1765908463579,3.0068,2929.0,2928.9,2.0178]
[1765908463774,4.90077473,2929.0,2928.7,3.2129232]
[1765908463980,3.00937473,2929.0,2928.9,2.0178]
[1765908464370,0.00257473,2929.0,2928.9,3.9873]
[1765908464977,3.7673,2928.8,2928.7,3.2129232]
[1765908466070,3.2078,2928.8,2928.7,3.9873]
[1765908466271,1.21347473,2929.0,2928.9,2.0178]
[1765908466575,1.2109,2929.5,2929.4,3.9873]
[1765908466881,3.2078,2929.7,2929.6,3.9873]
[1765908467075,3.21289281,2929.7,2929.6,3.9873]
[1765908467274,0.47114313,2929.7,2929.6,3.9873]
[1765908467474,0.00509281,2929.7,2929.6,11.66199102]
[1765908467672,0.00774486,2929.7,2929.6,5.22992165]
[1765908467872,0.00774486,2929.7,2929.6,7.19942165]
[1765908468276,1.38155,2930.5,2929.6,11.63350049]
[1765908468479,4.9782,2930.0,2929.9,3.2078]
[1765908468880,1.2109,2930.0,2929.9,5.2256]
[1765908469084,40.8,2930.4,2929.9,7.1951]
[1765908469389,0.00351337,2930.4,2930.0,3.2078]
[1765908469679,0.00351337,2930.4,2930.3,3.9873]
[1765908469880,0.00351337,2930.4,2930.3,2.0178]
[1765908470275,1.87941337,2930.4,2930.0,3.2078]
[1765908470577,3.7673,2930.1,2930.0,3.2078]
[1765908471081,0.00351337,2930.4,2929.7,3.2078]
[1765908471082,1.8759,2929.8,2929.7,3.2078]
[1765908471282,3.7673,2929.8,2929.7,3.2078]
[1765908471581,3.7673,2929.7,2929.6,0.00432165]
[1765908471779,1.2109,2930.0,2929.6,3.21212165]
[1765908471973,1.8759,2929.7,2929.6,0.00432165]
[1765908472578,1.2109,2930.0,2929.6,5.22992165]
[1765908472984,3.7673,2929.7,2929.6,3.21212165]
[1765908473986,44.5673,2929.7,2929.6,3.21212165]
[1765908474179,50.5673,2929.7,2929.6,3.21212165]
[1765908474378,3.7673,2929.3,2929.1,3.2078]
[1765908475081,3.7673,2929.3,2928.8,3.2078]
[1765908475281,1.8759,2928.9,2928.8,3.2078]
[1765908475480,1.8759,2928.9,2928.8,3.2117951]
[1765908475481,3.7673,2928.9,2928.8,3.2117951]
[1765908477487,0.0051232,2929.1,2928.8,7.1990951]
[1765908477888,1.8759,2928.9,2928.8,5.2295951]
[1765908478087,0.0051232,2929.1,2928.8,5.2295951]
[1765908478290,3.7673,2928.9,2928.8,3.2117951]
[1765908478677,7.14585,2928.9,2928.8,1e-08]
[1765908478880,3.7673,2928.7,2927.9,3.2078]
[1765908479086,3.2078,2928.6,2928.0,1.1328]
[1765908479891,3.2078,2928.6,2928.0,1.14208583]
[1765908480589,1.2109,2928.5,2928.0,0.00928583]
[1765908481184,42.0109,2928.5,2928.0,0.00928583]
[1765908481495,40.8,2928.5,2928.0,1.14208583]
[1765908481700,3.2078,2928.6,2928.0,1.14208583]
[1765908482192,44.0078,2928.6,2928.0,1.14208583]
[1765908482394,44.0078,2928.6,2928.0,0.00928583]
[1765908482395,3.7673,2928.1,2928.0,0.00928583]
[1765908482582,1.2109,2928.5,2927.6,3.2078]
[1765908482583,3.93812,2927.7,2927.6,3.2078]
[1765908482786,1.8759,2927.4,2926.9,3.2078]
[1765908483288,3.2078,2927.6,2927.3,3.9873]
[1765908483690,3.21172622,2927.6,2927.3,3.99061027]
[1765908484096,3.21172622,2927.6,2927.5,2.0178]
[1765908484395,7.69302622,2927.6,2927.3,0.00331027]
[1765908485096,4.48522622,2927.6,2927.3,0.00331027]
[1765908485284,0.00392622,2927.6,2927.5,2.3117]
[1765908485488,0.00392622,2927.6,2927.5,5.7584]
[1765908485995,3.2078,2928.2,2928.1,4.4764]
[1765908486293,3.2078,2928.5,2928.4,4.4764]
[1765908486494,7.6891,2928.5,2928.0,1.282]
[1765908486692,9.0011,2928.5,2927.8,3.2078]
[1765908487295,0.0051232,2928.4,2927.8,3.2078]
[1765908487697,0.0051232,2928.4,2928.3,4.4764]
[1765908488402,2.2599232,2928.4,2928.3,2.3117]
[1765908488708,2.2599232,2928.4,2928.0,1.282]
[1765908488709,4.4864232,2928.4,2928.0,1.282]
[1765908489002,2.2599232,2928.4,2928.3,2.3117]
[1765908489301,0.0051232,2928.4,2928.3,2.3117]
[1765908490596,0.0051232,2928.4,2928.3,4.4764]
[1765908490792,1.4828,2928.0,2927.2,3.2129232]
[1765908490991,1.312,2928.0,2927.2,0.0051232]
[1765908491198,4.5198,2928.0,2927.2,0.0051232]
[1765908492192,4.5198,2928.0,2927.3,3.21111027]
[1765908493491,4.4813,2927.4,2927.3,0.00331027]
[1765908493804,2.2548,2927.4,2927.3,2.31501027]
[1765908495101,3.2078,2927.8,2927.3,4.47971027]
[1765908497205,2.2548,2927.4,2927.3,2.31501027]
[1765908497706,2.2548,2927.4,2927.3,4.47971027]
[1765908497901,2.2548,2927.4,2927.3,2.31501027]
[1765908499002,4.4813,2927.4,2927.3,2.31501027]
[1765908499203,3.2078,2927.8,2927.3,4.47971027]
[1765908499403,4.4813,2927.4,2927.3,2.31501027]
[1765908499603,4.4813,2927.4,2927.3,0.00331027]
[1765908500511,4.4813,2927.4,2927.3,2.31501027]
[1765908501311,7.6891,2927.8,2927.3,0.00331027]
[1765908501511,5.4626,2927.8,2927.7,4.4764]
[1765908501709,40.8,2928.0,2927.9,2.3117]
[1765908502009,40.8,2928.0,2927.3,3.21111027]
[1765908502010,4.4813,2928.0,2927.3,3.21111027]
[1765908502201,5.4626,2927.8,2927.7,4.4764]
[1765908502605,2.2548,2927.8,2927.7,4.4764]
[1765908502808,3.2078,2928.2,2928.1,4.4764]
[1765908503012,0.0051232,2928.4,2928.3,4.4764]
[1765908504112,0.0051232,2928.4,2928.3,7.6842]
[1765908504414,7.6891,2929.0,2928.9,2.3117]
[1765908504707,48.4891,2929.0,2928.5,1.282]
[1765908505107,48.4891,2929.0,2928.9,2.3117]
[1765908505300,48.49230524,2929.0,2928.9,2.3117]
[1765908505503,45.28450524,2929.0,2928.9,2.3117]
[1765908505906,46.59650524,2929.0,2928.5,1.282]
[1765908506606,45.28450524,2929.0,2928.5,1.282]
[1765908506815,43.05800524,2929.0,2928.9,4.4764]
[1765908507203,2.25800524,2929.0,2928.9,4.4764]
[1765908507509,0.00320524,2929.0,2928.9,4.4764]
[1765908508211,0.00332908,2929.2,2929.1,4.4764]
[1765908509307,0.00585615,2929.2,2929.1,4.4764]
[1765908511127,3.2145,2929.8,2929.7,4.4764]
[1765908511312,3.2078,2930.6,2930.5,4.4764]
[1765908511511,1.312,2931.0,2930.5,4.4764]
[1765908511714,1.312,2930.5,2930.2,3.2078]
[1765908511915,1.312,2930.5,2930.2,7.6842]
[1765908512215,0.00411255,2930.5,2930.4,4.4764]
[1765908516514,2.25891255,2930.5,2930.4,4.4764]
[1765908516715,5.82751255,2930.5,2930.2,3.21040028]
[1765908516914,5.82751255,2930.5,2930.4,2.1706]
[1765908517113,3.55061255,2930.5,2930.4,4.4456]
[1765908517314,0.00411255,2930.5,2930.4,4.4456]
[1765908518217,0.0071,2931.1,2931.0,4.4456]
[1765908518623,0.0071,2931.1,2931.0,5.7159]
[1765908518923,0.0071,2931.1,2931.0,4.4456]
[1765908519416,0.00315962,2931.1,2931.0,6.66277775]
[1765908519621,0.00315962,2931.1,2931.0,8.93777775]
[1765908519820,0.00315962,2931.1,2931.0,5.6984]
[1765908520021,4.4995,2932.5,2931.9,4.4456]
[1765908520224,4.4995,2932.5,2931.9,4.4507232]
[1765908520520,40.8,2932.4,2931.9,4.4507232]
[1765908520820,5.6768,2932.0,2931.9,0.0051232]
[1765908521022,5.68008868,2932.0,2931.9,0.0051232]
[1765908521419,0.00328868,2932.0,2931.9,4.4507232]
[1765908521717,5.68008868,2932.0,2931.9,0.0051232]
[1765908522621,1.29498868,2932.0,2931.9,4.4507232]
[1765908523022,0.00328868,2932.0,2931.9,4.4507232]
[1765908526113,0.00328868,2932.0,2931.9,0.0051232]
[1765908526114,5.68008868,2932.0,2931.9,0.0051232]
[1765908526920,3.40318868,2932.0,2931.9,2.1757232]
[1765908527321,3.40318868,2932.0,2930.9,3.2078]
[1765908527322,5.6768,2931.5,2930.9,3.2078]
[1765908527523,5.6768,2931.5,2931.4,4.4456]
[1765908527524,1.2917,2931.5,2931.4,4.4456]
[1765908528125,3.3999,2931.5,2931.4,2.1706]
[1765908528726,0.0051232,2931.7,2931.6,4.4456]
[1765908528921,0.0051232,2931.7,2931.6,7.6534]
[1765908530332,2.1133232,2931.7,2931.6,5.3784]
[1765908530932,4.3902232,2931.7,2931.2,3.2129232]
[1765908531429,4.3851,2931.3,2931.2,3.2129232]
[1765908532325,4.3851,2931.3,2931.2,0.0051232]
[1765908532522,1.2917,2931.0,2930.6,5.3784]
[1765908532730,2.1082,2930.7,2930.6,5.3784]
[1765908533335,4.3851,2930.7,2930.6,3.2078]
[1765908534239,5.6768,2930.5,2930.4,0.0051232]
[1765908534843,1.46232,2931.0,2930.4,4.4507232]
[1765908535638,5.6768,2930.5,2930.4,0.0051232]
[1765908536040,3.3999,2930.5,2930.4,2.1757232]
[1765908536232,3.2078,2930.9,2930.4,4.4507232]
[1765908536433,5.316,2930.9,2930.8,2.1706]
[1765908536633,7.5929,2930.9,2930.4,0.0051232]
[1765908539848,4.3851,2930.9,2930.8,2.1706]
[1765908540152,4.3851,2931.2,2931.1,2.1706]
[1765908540350,2.1082,2931.2,2931.1,2.1706]
[1765908540842,4.3851,2931.2,2930.6,3.2078]
[1765908541048,4.3851,2930.7,2930.6,3.2078]
[1765908541246,5.6768,2930.5,2930.4,0.0051232]
[1765908541446,4.3851,2930.1,2930.0,3.2078]
[1765908542646,4.3851,2929.7,2929.3,3.2078]
[1765908542949,4.3851,2929.4,2929.3,0.00358698]
[1765908543150,7.5929,2929.4,2929.3,0.00358698]
[1765908543947,4.3851,2929.4,2929.3,0.00358698]
[1765908544154,1.9671,2929.4,2929.3,2.17418698]
[1765908544450,1.9671,2929.4,2929.3,0.00358698]
[1765908544851,4.0168,2929.4,2929.3,0.00358698]
[1765908547343,1.2917,2929.5,2929.4,1.9052]
[1765908547544,0.0051232,2929.6,2929.5,4.021]
[1765908547745,0.0051232,2929.6,2929.5,6.11435609]
[1765908548255,0.0051232,2929.6,2929.5,7.23785609]
[1765908548754,0.0051232,2929.6,2929.5,6.11435609]
[1765908551959,0.0051232,2929.6,2929.5,7.03665609]
[1765908553658,1.9671,2929.4,2929.3,3.21138698]
[1765908553860,1.9671,2929.4,2929.3,5.11658698]
[1765908554161,1.9671,2929.4,2929.3,3.21138698]
[1765908554162,4.0168,2929.4,2929.3,3.21138698]
[1765908555457,4.0168,2929.4,2929.3,0.00358698]
[1765908556660,4.0168,2929.1,2929.0,2.89044328]
[1765908557052,1.9671,2929.1,2929.0,4.79564328]
[1765908557763,1.9671,2929.1,2929.0,4.80005468]
[1765908558261,1.3129,2929.5,2929.0,4.80005468]
[1765908558849,3.2129232,2929.6,2929.5,1.9052]
[1765908559049,0.0051232,2929.6,2929.5,4.021]
[1765908560356,0.0051232,2929.6,2929.5,7.2288]
[1765908560758,0.00381843,2929.7,2929.6,4.021]
[1765908561863,4.0168,2929.6,2929.5,3.2078]
[1765908562067,1.3129,2929.5,2929.1,3.2078]
[1765908563161,0.00381843,2929.7,2929.6,1.9052]
[1765908563565,1.97091843,2929.7,2929.6,1.9052]
[1765908566467,0.00381843,2929.7,2929.6,4.021]
[1765908566668,4.02061843,2929.7,2929.4,3.2078]
[1765908566861,1.97091843,2929.7,2929.6,1.9052]
[1765908567068,0.00381843,2929.7,2929.6,4.021]
[1765908569262,4.02061843,2929.7,2929.4,3.2078]
[1765908570867,1.97091843,2929.7,2929.6,1.9052]
[1765908571270,4.02061843,2929.7,2929.6,1.9052]
[1765908571574,4.02061843,2929.7,2929.4,3.2078]
[1765908572572,5.3297,2929.5,2929.4,3.2078]
[1765908572765,1.97091843,2929.7,2929.6,4.021]
[1765908572976,0.00381843,2929.7,2929.6,4.021]
[1765908573370,0.00381843,2929.7,2929.6,4.1917]
[1765908573570,0.00381843,2929.7,2929.6,7.25525302]
[1765908574273,0.00381843,2929.7,2929.6,4.1917]
[1765908574673,0.00381843,2929.7,2929.6,8.65395047]
[1765908575283,3.81111843,2929.7,2929.6,4.96821545]
[1765908575484,3.81111843,2929.7,2929.6,1.9052]
[1765908576077,1.8994,2929.5,2929.4,8.29411545]
[1765908576377,1.8994,2929.5,2929.1,3.2078]
[1765908576378,3.8073,2929.2,2929.1,3.2078]
[1765908576880,1.8994,2929.2,2929.1,7.1236]
[1765908577478,1.1544,2929.5,2929.1,7.1236]
[1765908577681,4.9617,2929.5,2929.4,2.0233]
[1765908577881,3.0538,2929.5,2929.4,3.9158]
[1765908578278,0.00381843,2929.7,2929.4,3.9158]
[1765908579078,1.90321843,2929.7,2929.6,3.9158]
[1765908579283,0.00381843,2929.7,2929.6,3.9158]
[1765908579580,1.90321843,2929.7,2929.6,3.9158]
[1765908580374,3.81111843,2929.7,2929.4,6.27081545]
[1765908580576,3.81111843,2929.7,2929.6,2.0233]
[1765908581578,1.90321843,2929.7,2929.6,3.9158]
[1765908581883,3.81111843,2929.7,2929.4,6.27081545]
[1765908582285,3.81111843,2929.7,2929.6,2.0233]
[1765908583090,1.90321843,2929.7,2929.6,3.9158]
[1765908583281,3.81111843,2929.7,2929.6,2.0233]
[1765908583482,1.8994,2929.5,2929.4,7.1236]
[1765908583885,4.9617,2929.5,2929.4,5.2311]
[1765908584082,3.8073,2929.4,2929.3,3.06301545]
[1765908584390,3.8073,2929.1,2929.0,4.224628]
[1765908584587,3.8073,2929.1,2929.0,0.0044114]
[1765908584788,1.8994,2929.1,2929.0,3.9202114]
[1765908585387,3.8073,2929.1,2929.0,2.0277114]
[1765908585783,3.8073,2929.1,2929.0,0.0044114]
[1765908585985,3.8073,2928.9,2928.8,0.0051232]
[1765908587090,3.8073,2928.9,2928.8,0.00896085]
[1765908587991,3.0538,2929.0,2928.9,3.9158]
[1765908589181,3.8073,2928.9,2928.8,0.00896085]
[1765908589686,4.9617,2928.5,2928.4,3.06301545]
[1765908589892,3.8073,2928.3,2928.2,3.2078]
[1765908590286,3.8073,2928.3,2928.2,5.2311]
[1765908590692,3.8073,2928.3,2928.2,5.23377443]
[1765908591095,3.8073,2928.3,2928.2,0.00267443]
[1765908591496,3.8073,2928.3,2928.2,2.02597443]
[1765908591698,3.0538,2928.5,2928.4,3.9158]
[1765908591897,3.2078,2928.9,2928.4,3.9158]
[1765908592088,1.8994,2928.5,2928.4,3.9158]
[1765908592393,4.9617,2928.5,2928.4,2.0233]
[1765908592589,1.8994,2928.3,2928.2,2.02597443]
[1765908592793,3.8073,2928.3,2928.2,2.02597443]
[1765908592991,3.8073,2928.3,2928.2,0.00267443]
[1765908593192,3.8073,2928.3,2928.2,2.02597443]
[1765908593399,1.8994,2928.3,2928.2,3.91847443]
[1765908594000,44.0078,2928.9,2928.5,3.9158]
[1765908594200,1.8994,2928.6,2928.5,3.9158]
[1765908595802,7.0151,2928.9,2928.2,6.27348988]
[1765908597996,5.1072,2928.9,2928.8,3.9158]
[1765908598192,5.1072,2929.2,2929.1,3.9158]
[1765908598396,0.00381843,2929.7,2929.6,3.9158]
[1765908600104,1.90321843,2929.7,2929.6,3.9158]
[1765908600402,1.90321843,2929.7,2929.2,6.44153545]
[1765908600403,3.81111843,2929.7,2929.2,3.37852]
[1765908600905,3.81111843,2929.7,2929.2,0.17072]
[1765908601107,1.8994,2929.1,2929.0,6.97881545]
[1765908601397,3.8073,2929.1,2928.9,11.043]
[1765908601598,3.0538,2929.0,2928.9,14.9588]
[1765908601795,4.3622,2929.5,2928.9,14.9588]
[1765908602200,1.1544,2929.5,2928.9,14.9588]
[1765908602503,4.3622,2929.5,2928.9,14.9588]
[1765908602905,1.8994,2929.0,2928.9,14.9588]
[1765908603106,4.3622,2929.5,2928.9,14.9588]
[1765908603607,1.8994,2929.0,2928.9,14.9588]
[1765908604106,4.3622,2929.5,2928.9,14.9588]
[1765908605499,7.9338,2929.0,2928.9,11.043]
[1765908605702,2.9303,2928.5,2928.4,8.0082166]
[1765908605902,1.0566,2929.0,2928.4,6.9958]
[1765908606303,1.8737,2928.5,2928.4,3.788]
[1765908606602,4.2644,2929.0,2928.4,3.788]
[1765908606906,6.8772,2929.3,2929.2,1.9093]
[1765908607907,6.8772,2929.3,2928.8,3.06301545]
[1765908608116,6.8772,2929.3,2928.7,3.23377545]
[1765908608515,3.6694,2928.7,2928.6,4.97231545]
[1765908608717,1.8737,2928.6,2928.5,5.1171]
[1765908609013,3.2078,2929.3,2929.2,1.9093]
[1765908609216,6.8772,2929.3,2929.2,1.9093]
[1765908610509,6.8772,2929.3,2928.7,3.06301545]
[1765908611007,6.8772,2929.3,2928.8,3.06301545]
[1765908611503,6.8772,2929.3,2928.7,3.06301545]
[1765908613212,3.6694,2928.8,2928.7,4.97231545]
[1765908613917,3.6694,2928.8,2928.6,3.06301545]
[1765908614109,3.6694,2928.6,2928.5,3.06301545]
[1765908614312,3.6694,2928.3,2928.2,0.00267443]
[1765908614715,4.726,2928.5,2928.4,1.9093]
[1765908614909,2.9303,2928.5,2928.4,3.788]
[1765908615715,3.2078,2928.9,2928.4,3.788]
[1765908615919,6.8772,2928.9,2928.4,3.06301545]
[1765908616121,3.6694,2928.6,2928.5,3.06301545]
[1765908616820,3.6694,2928.6,2928.5,4.97231545]
[1765908617719,3.6694,2928.6,2928.5,1.9093]
[1765908618218,1.8737,2928.6,2928.5,3.788]
[1765908619314,1.8737,2928.9,2928.8,3.788]
[1765908619624,5.0815,2929.2,2929.1,1.9093]
[1765908619914,6.8772,2929.2,2929.1,1.9093]
[1765908620119,3.6694,2929.2,2929.1,1.9093]
[1765908620317,0.00381843,2929.7,2929.6,3.788]
[1765908620517,0.00381843,2929.7,2929.6,9.094008]
[1765908620714,4.2644,2930.5,2929.8,3.788]
[1765908620913,4.2644,2930.5,2929.8,6.85020497]
[1765908621110,4.2644,2930.5,2929.9,3.2078]
[1765908621319,1.0566,2931.0,2930.4,9.094008]
[1765908621823,1.06600125,2931.0,2930.4,9.10262995]
[1765908622120,1.8737,2930.5,2930.4,9.10262995]
[1765908622317,4.726,2930.5,2930.4,7.22392995]
[1765908622617,4.726,2930.5,2930.4,3.21642195]
[1765908623621,4.726,2930.5,2930.4,5.12572195]
[1765908624018,2.9303,2930.5,2930.4,7.00442195]
[1765908624220,2.93970125,2931.0,2930.9,1.9093]
[1765908624420,2.93970125,2931.0,2930.9,5.886208]
[1765908624612,4.73540125,2931.0,2930.7,3.2078]
[1765908624926,3.6694,2930.8,2930.7,3.2078]
[1765908625717,1.06600125,2931.0,2930.7,6.9958]
[1765908626419,3.6694,2930.8,2930.7,3.2078]
[1765908627526,3.6694,2930.6,2930.4,3.21642195]
[1765908627726,4.726,2930.5,2930.4,3.21642195]
[1765908628721,4.726,2930.5,2930.4,5.12572195]
[1765908629023,1.06600125,2931.0,2930.4,7.00442195]
[1765908629222,1.06600125,2931.0,2930.5,2.098208]
[1765908630529,1.8737,2930.8,2930.7,5.1171]
[1765908630727,1.06600125,2931.0,2930.7,6.9958]
[1765908631824,2.93970125,2931.0,2930.9,1.9093]
[1765908632017,4.73540125,2931.0,2930.7,3.2078]
[1765908632226,4.73540125,2931.0,2930.9,1.9093]
[1765908632424,0.00940125,2931.0,2930.9,3.788]
[1765908632619,2.93970125,2931.0,2930.9,5.886208]
[1765908632819,2.86170125,2931.0,2930.7,3.2078]
[1765908633024,3.6694,2930.8,2930.7,3.2078]
[1765908633223,2.93970125,2931.0,2930.9,3.788]
[1765908633423,4.73540125,2931.0,2930.9,1.9093]
[1765908633932,4.73540125,2931.0,2930.7,3.2078]
[1765908634227,1.8392,2930.8,2930.7,6.8764]
[1765908635427,3.6479,2930.8,2930.7,5.083]
[1765908636029,1.8392,2930.8,2930.7,6.951]
[1765908636334,3.6479,2930.8,2930.7,5.083]
[1765908636931,1.8392,2930.8,2930.7,6.951]
[1765908637333,2.83090125,2931.0,2930.9,3.6089]
[1765908638024,2.83090125,2931.0,2930.9,1.7409]
[1765908638025,4.63960125,2931.0,2930.9,1.7409]
[1765908638224,1.7649,2930.8,2930.7,6.8167]
[1765908638833,3.5736,2930.8,2930.7,6.8167]
[1765908639035,3.5736,2930.8,2930.7,3.2078]
[1765908639836,3.5736,2930.8,2930.7,4.9487]
[1765908640423,2.83090125,2931.0,2930.9,1.7409]
[1765908640636,4.63960125,2931.0,2930.9,1.7409]
[1765908641136,4.63960125,2931.0,2930.7,3.2078]
[1765908641328,1.7649,2930.8,2930.7,6.8167]
[1765908641831,1.06600125,2931.0,2930.7,6.8167]
[1765908641832,1.06600125,2931.0,2930.9,3.6089]
[1765908642637,1.06600125,2931.0,2930.7,3.2078]
[1765908642638,4.69470125,2931.0,2930.7,3.2078]
[1765908642934,2.88600125,2931.0,2930.9,3.6089]
[1765908643937,1.12110125,2931.0,2930.9,3.6089]
[1765908644133,0.00940125,2931.0,2930.9,3.6089]
[1765908644435,1.77430125,2931.0,2930.9,3.6089]
[1765908644739,3.5736,2930.8,2930.7,4.9487]
[1765908645533,1.12110125,2931.0,2930.7,4.9487]
[1765908645534,2.88600125,2931.0,2930.9,3.6089]
[1765908645837,4.69470125,2931.0,2930.7,3.2078]
[1765908646034,3.5736,2930.8,2930.7,6.8167]
[1765908646230,3.5736,2930.8,2930.7,3.2078]
[1765908647541,3.5736,2930.8,2930.7,4.9487]
[1765908647737,3.5736,2930.8,2930.7,6.8167]
[1765908647939,4.69470125,2931.0,2930.9,3.6089]
[1765908648139,2.88600125,2931.0,2930.9,3.6089]
[1765908648343,4.69470125,2931.0,2930.9,1.7409]
[1765908648938,1.12110125,2931.0,2930.9,3.6089]
[1765908649138,0.00940125,2931.0,2930.9,3.6089]
[1765908649335,4.69470125,2931.0,2930.9,3.6089]
[1765908649735,2.88600125,2931.0,2930.9,3.6089]
[1765908650144,4.69470125,2931.0,2930.9,3.6089]
[1765908651840,0.00940125,2931.0,2930.9,3.6089]
[1765908652042,1.77430125,2931.0,2930.9,3.6089]
[1765908652244,2.88600125,2931.0,2930.9,3.6089]
[1765908652438,4.14027092,2931.0,2930.9,3.6089]
[1765908652639,2.33157092,2931.0,2930.9,3.6089]
[1765908652838,4.14027092,2931.0,2930.9,3.6089]
[1765908653441,2.33418916,2931.0,2930.9,3.6089]
[1765908654143,1.22248916,2931.0,2930.9,3.6089]
[1765908654441,0.00261824,2931.0,2930.9,3.6089]
[1765908654646,0.00261824,2931.0,2930.9,6.67110497]
[1765908654845,0.0051232,2931.2,2931.1,3.6089]
[1765908655046,0.0051232,2931.2,2931.1,8.914908]
[1765908655442,3.2078,2932.3,2931.9,3.6089]
[1765908655648,1.7649,2932.0,2931.9,3.6089]
[1765908655852,1.76859457,2932.0,2931.9,3.6089]
[1765908656048,3.57729457,2932.0,2931.9,3.6089]
[1765908656244,3.2078,2932.9,2932.4,3.6089]
[1765908656440,1.1117,2933.0,2932.4,3.6089]
[1765908656441,3.5736,2932.7,2932.6,3.2078]
[1765908656744,4.6853,2932.5,2932.4,0.0051232]
[1765908656946,2.8766,2932.5,2932.4,3.6140232]
[1765908657246,1.76917609,2932.5,2932.4,3.61814988]
[1765908657445,4.68957609,2932.5,2932.4,1.75014988]
[1765908657649,4.68957609,2932.5,2932.4,0.00924988]
[1765908658440,7.89737609,2932.5,2932.4,4.988e-05]
[1765908658643,7.89737609,2932.5,2931.6,5.306008]
[1765908658644,3.5736,2931.7,2931.6,3.2078]
[1765908658844,10.32377609,2932.5,2931.9,3.6089]
[1765908658845,4.32377609,2932.5,2931.9,3.6089]
[1765908659046,3.5736,2932.2,2932.1,4.9487]
[1765908659246,4.68957609,2932.5,2932.4,1.7409]
[1765908659650,4.68957609,2932.5,2932.4,1.74347558]
[1765908659948,2.88087609,2932.5,2932.4,3.61147558]
[1765908660150,4.68957609,2932.5,2932.4,0.00257558]
[1765908660648,3.5736,2932.3,2932.2,0.0051232]
[1765908660853,3.5736,2932.3,2932.2,1.7460232]
[1765908661348,1.7649,2932.3,2932.2,3.6140232]
[1765908661740,3.5736,2932.3,2932.2,3.61843039]
[1765908661946,3.5736,2932.3,2932.2,1.75043039]